{"text_format":"1","workbook":"xlsx","n_sheets":3,"sheets":["List1","List2","List3"],"not_rendered":{"charts":0,"images":0,"macros":1,"external_links":0,"defined_names":0,"comments":0,"pivot_tables":0},"unopened":[],"bounds":{"document_bytes":16777216,"sheet_cells":100000,"rows_first":2000,"rows_last":500,"rows_between":2000,"halvings":0,"cell_chars":16384,"cell_head_chars":4096},"cells_cut":0,"cells_raw":0,"read":"whole","date_system":"1900"}

{"sheet":"List1","index":0,"n_rows":53,"n_cols":9,"rows_kept":53,"cut":false,"hidden":false,"merged":[[49,1,49,8],[3,8,4,8],[3,0,4,0],[30,0,30,1],[33,0,33,1],[35,0,35,1],[34,0,34,1],[32,0,32,1],[31,0,31,1],[28,0,28,1],[12,8,16,8],[10,0,10,1],[17,2,17,8],[24,2,24,8],[14,0,15,0],[43,0,43,1],[37,0,37,8],[38,0,38,8],[39,0,39,8],[40,0,40,8],[41,0,41,8]]}
["Položkový výkaz činností –  Příloha ke Smlouvě –  KoPÚ Všestary"]
[null,"Hlavní  celek  / Dílčí část Hlavního celku","Měrná jednotka","Počet Měrných jednotek","Cena za Měrnou jednotku bez \nDPH v Kč 10)","Cena bez DPH\nv Kč 10)","DPH","Cena vč. DPH 10)","Termín předání k akceptačnímu řízení"]
["6.2","Hlavní celek 1 „Přípravné práce“"]
["6.2.1","Revize stávajícího bodového pole"," bod",3,null,{"$f":"IF(AND(D4>0,E4>0),E4*D4,\"nevyplňovat\")","v":"nevyplňovat"},0.21,{"$f":"IF(ISNUMBER(F4),F4*(1+G4),\"nevyplňovat\")","v":"nevyplňovat"},"28.2.2026"]
[null,"Doplnění stávajícího bodového pole","bod",4,null,{"$f":"IF(AND(D5>0,E5>0),E5*D5,\"nevyplňovat\")","v":"nevyplňovat"},0.21,{"$f":"IF(ISNUMBER(F5),F5*(1+G5),\"nevyplňovat\")","v":"nevyplňovat"}]
["6.2.2","Podrobné měření polohopisu v obvodu KoPÚ","ha",155,null,"nevyplňovat",0.21,"nevyplňovat","31.5.2026"]
["6.2.4","Zjišťování hranic obvodu KoPÚ, geometrické plány pro stanovení obvodu KoPÚ, předepsaná stabilizace dle vyhlášky č. 357/2013 Sb."," 100 bm",62,null,"nevyplňovat",0.21,"nevyplňovat","28.2.2027"]
["6.2.5","Zjišťování hranic pozemků neřešených dle § 2 Zákona"," 100 bm",5,null,"nevyplňovat",0.21,"nevyplňovat","28.2.2027"]
["6.2.7","Rozbor současného stavu                      ","ha",155,null,"nevyplňovat",0.21,"nevyplňovat","30.4.2027"]
["6.2.8","Dokumentace k soupisu nároků vlastníků pozemků","ha",155,null,"nevyplňovat",0.21,"nevyplňovat","30.6.2027"]
["„Přípravné práce“ celkem",null,null,null,null,{"$f":"SUM(F4:F10)","v":0},null,{"$f":"SUM(H4:H10)","v":0},"2027-06-30"]
["6.3","Hlavní celek 2 „Návrhové práce“ "]
["6.3.1","Vypracování plánu společných zařízení (\"PSZ\")","ha",155,null,{"$f":"IF(AND(D13>0,E13>0),E13*D13,\"nevyplňovat\")","v":"nevyplňovat"},0.21,{"$f":"IF(ISNUMBER(F13),F13*(1+G13),\"nevyplňovat\")","v":"nevyplňovat"},"30.6.2028"]
["6.3.1 i) a)","Výškopisné zaměření zájmového území dle čl. 6.3.1 i) a) Smlouvy 2) ","ha",15,null,{"$f":"IF(AND(D14>0,E14>0),E14*D14,\"nevyplňovat\")","v":"nevyplňovat"},0.21,{"$f":"IF(ISNUMBER(F14),F14*(1+G14),\"nevyplňovat\")","v":"nevyplňovat"}]
["6.3.1 i) b)","DTR liniových dopravních staveb PSZ pro stanovení plochy záboru půdy stavbami dle čl. 6.3.1 i) b) Smlouvy 2)","100 bm",50,null,"nevyplňovat",0.21,"nevyplňovat"]
[null,"DTR liniových vodohospodářských a protierozních staveb PSZ pro stanovení plochy záboru půdy stavbami dle čl. 6.3.1 i) b) Smlouvy 2)","100 bm",3,null,"nevyplňovat",0.21,"nevyplňovat"]
["6.3.1 i) c)","DTR vodohospodářských staveb PSZ dle čl. 6.3.1 i) c) Smlouvy 2)","ks",1,null,"nevyplňovat",0.21,"nevyplňovat"]
["6.3.2 h)","Aktualizace PSZ 11)"]
["6.3.2 h) i)","Aktualizace PSZ do 10 ha 11)","ha",1,null,{"$f":"IF(AND(D19>0,E19>0),E19*D19,\"nevyplňovat\")","v":"nevyplňovat"},0.21,{"$f":"IF(ISNUMBER(F19),F19*(1+G19),\"nevyplňovat\")","v":"nevyplňovat"},"na výzvu Objednatele v dohodnuté lhůtě"]
["6.3.2 h) ii)","Aktualizace PSZ do 50 ha 11)","ha",1,null,{"$f":"IF(AND(D20>0,E20>0),E20*D20,\"nevyplňovat\")","v":"nevyplňovat"},0.21,{"$f":"IF(ISNUMBER(F20),F20*(1+G20),\"nevyplňovat\")","v":"nevyplňovat"},"na výzvu Objednatele v dohodnuté lhůtě"]
["6.3.2 h) iii)","Aktualizace PSZ nad 50 ha 11)","ha",1,null,"nevyplňovat",0.21,"nevyplňovat","na výzvu Objednatele v dohodnuté lhůtě"]
["6.3.2 ","Vypracování návrhu nového uspořádání pozemků k jeho vystavení dle § 11 odst. 1 Zákona","ha",155,null,"nevyplňovat",0.21,"nevyplňovat","30.6.2029"]
["6.3.3","Předložení aktuální dokumentace návrhu KoPÚ","ks",4,null,"nevyplňovat",0.21,"nevyplňovat","do 1 měsíce od výzvy Objednatele"]
["6.3.4","Zhotovení podkladů pro změnu katastrální hranice","100 bm",34,null,"nevyplňovat",0.21,"nevyplňovat","do 3 měsíců od výzvy Objednatele"]
["6.3.5","Aktualizace návrhu po ukončení odvolacího řízení 12)"]
["6.3.5 i)","Aktualizace návrhu po ukončení odvolacího řízení do 10 ha 12)","ha",1,null,{"$f":"IF(AND(D26>0,E26>0),E26*D26,\"nevyplňovat\")","v":"nevyplňovat"},0.21,{"$f":"IF(ISNUMBER(F26),F26*(1+G26),\"nevyplňovat\")","v":"nevyplňovat"},"do 3 měsíců od výzvy Objednatele"]
["6.3.5 ii)","Aktualizace návrhu po ukončení odvolacího řízení do 50 ha 12)","ha",1,null,{"$f":"IF(AND(D27>0,E27>0),E27*D27,\"nevyplňovat\")","v":"nevyplňovat"},0.21,"nevyplňovat","do 3 měsíců od výzvy Objednatele"]
["6.3.5 iii)","Aktualizace návrhu po ukončení odvolacího řízení nad 50 ha 12)","ha",1,null,"nevyplňovat",0.21,"nevyplňovat","do 3 měsíců od výzvy Objednatele"]
["„Návrhové práce“ celkem",null,null,null,null,{"$f":"SUM(F13:F28)","v":0},null,{"$f":"SUM(H13:H28)","v":0}]
[null,"Hlavní celek 3 „Mapové dílo“ ","ha",155,null,{"$f":"IF(AND(D30>0,E30>0),CEILING(E30,1)*D30,\"nevyplňovat\")","v":"nevyplňovat"},0.21,{"$f":"IF(ISNUMBER(F30),F30*(1+G30),\"nevyplňovat\")","v":"nevyplňovat"},"do 3 měsíců od výzvy Objednatele"]
["„Mapové dílo“ celkem",null,null,null,null,{"$f":"SUM(F30)","v":0},null,{"$f":"SUM(H30)","v":0}]
["Rekapitulace kalkulace ceny"]
["1. Hlavní celek 1 celkem v Kč",null,null,null,null,{"$f":"F11","v":0},null,{"$f":"H11","v":0}]
["2. Hlavní celek 2 celkem v Kč",null,null,null,null,{"$f":"F29","v":0},null,{"$f":"H29","v":0}]
["3. Hlavní celek 3 celkem v Kč",null,null,null,null,{"$f":"F31","v":0},null,{"$f":"H31","v":0}]
["Celková cena v Kč",null,null,null,null,{"$f":"SUM(F33:F35)","v":0},null,{"$f":"SUM(H33:H35)","v":0}]
[]
["2) Jedná se o položky, u kterých nelze předem objektivně stanovit přesný počet Měrných jednotek, zadavatel proto stanoví v Zadávací dokumentaci počet Měrných jednotek kvalifikovaným odhadem."]
["10) Ceny bez DPH jsou uváděny na celé Kč, zaokrouhlené směrem nahoru, ceny s DPH jsou uváděny s přesností na dvě desetinná místa. V případě změny sazby DPH změnit hodnotu u příslušných činností ve skrytém sloupci G."]
["11) Vždy bude uvedena 1 Měrná jednotka, jejíž cena je v Zadávací dokumentaci limitovaná (pozn.: do 10 ha - sedminásobek, do 50 ha - čtyřnásobek, nad 50 ha jeden a půl násobek). V případě, že dojde k aktualizaci PSZ dle čl. 6.3.2 h) Smlouvy, do MJ se bude počítat výměra všech navržených opatření v ha, uvedená v technické zprávě PSZ již převzaté podle čl. 6.3.1 Smlouvy. Do této výměry se nezapočítává výměra agrotechnických a organizačních opatření."]
["12) Vždy bude uvedena 1 Měrná jednotka, jejíž cena je v Zadávací dokumentaci limitovaná (pozn.: do 10 ha - sedminásobek, do 50 ha - čtyřnásobek, nad 50 ha jeden a půl násobek). V případě, že dojde k aktualizaci návrhu po ukončení odvolacího řízení dle čl. 6.3.5 Smlouvy, počítá se součet výměry jednotlivých pozemků dotčených změnou uspořádání pozemků v již schváleném návrhu v ha, zaokrouhlený směrem nahoru. Za aktualizaci není považována změna jména vlastníka nebo přenesení věcných a jiných práv a povinností, poznámek apod., zapsaných do KN po vydání rozhodnutí o schválení návrhu."]
["13) Jedná se o součet položek ve svislých sloupcích, nelze násobit aktuální výší DPH. Tyto položky budou uvedeny v čl. 3.1 Smlouvy."]
[]
["Poznámka:"]
[null,"nevyplňovat"]
[null,"DTR – dokumentace technického řešení PSZ"]
[]
[null,"Pro automatický výpočet je nutné „Povolit obsah“"]
[null,"D –  Počet Měrných jednotek – celé číslo – vyplní zadavatel Veřejné zakázky."]
[null,"E –  Cena za Měrnou jednotku bez DPH – celé číslo (nastaveno automatické zaokrouhlování směrem nahoru pro případ použití inflační doložky), vyplní uchazeč."]
[null,"F –  Cena bez DPH – nastaveno automatické zaokrouhlování směrem nahoru, automatický výpočet."]
[null,"G – Skrytý sloupec – obsahuje aktuální DPH 21 %."]
[null,"H –  Cena vč. DPH – nastaveno automatické zaokrouhlování směrem nahoru."]

{"sheet":"List2","index":1,"n_rows":0,"n_cols":0,"rows_kept":0,"cut":false,"hidden":false,"merged":[]}

{"sheet":"List3","index":2,"n_rows":0,"n_cols":0,"rows_kept":0,"cut":false,"hidden":false,"merged":[]}